Cogmind - Beta 14 X2 @@@ ROGUE MODE // 2024.08.01 @ 01:13:26 Player: cptwinky Result: Destroyed by Lightning with EMDS Performance ------------- Evolutions (5) 2500 Regions Visited (14) 2800 Robots Destroyed (115) 575 Value Destroyed (4432) 4432 Prototype IDs (38) 760 Alien Tech Used (0) 0 Bonus (3140) 3140 TOTAL SCORE: 14207 Bonus ------- High Alert Combat Kills 414 Follower Combat Kills 1666 Network Hubs Disabled 400 Registered with UFD 300 Built Enhanced Grunts 300 A7 Reached Mainframe 300 Met R17 at Cetus 500 Friendly Fire -740 Cogmind --------- Core Integrity 0/1000 Matter 295/300 Energy 100/100 System Corruption 23% Temperature Cool (0) Movement Core (50) Location -5/Hub_04(d) Parts ------- > --- POWER (2) -------- (None) > --- PROPULSION (5) --- (None) > --- UTILITY (7) ------ (None) > --- WEAPON (3) ------- (None) > --- INVENTORY (5) ---- Scrap Suit Improved Coolant Injector Surveybot 17 Chip Advanced System Restoration Module Peak State ------------ > --- POWER ------------ Cooled Deuterium Engine Quantum Reactor > --- PROPULSION ------- Flexi-carbon Leg Flexi-carbon Leg Flexi-carbon Leg Myomer Leg Myomer Leg > --- UTILITY ---------- Scrap Suit Cryofiber Web Advanced Heat Sink High-capacity Storage Unit Improved Targeting Computer Improved Medium Armor Plating > --- WEAPON ----------- Beamcaster Force Rifle Heavy Beamcaster > --- INVENTORY -------- Quantum Reactor Scrap Suit Improved Coolant Injector Deep Structural Scanner Surveybot 17 Chip Layered Medium Armor Plating Improved Shield Generator A0-MCA's Component Scanner Advanced System Restoration Module Improved Trap Extractor Sensor Drone Bay Wave Gun Heavy Beamcaster Hypervelocity Gauss Cannon Heavy Missile Launcher Long-range Missile Launcher Improved Datajack Improved Plasma Cutter Shock Maul [Rating: 94] Favorites ----------- Power Cooled Deuterium Engine Engine Cooled Deuterium Engine Power Core Micro Nuclear Core Reactor Quantum Reactor Propulsion Improved Carbon-fiber Leg Treads Light Treads Leg Improved Carbon-fiber Leg Utility Improved Targeting Computer Device Improved Heat Sink Storage Large Storage Unit Processor Improved Targeting Computer Protection Improved Medium Armor Plating Weapon Gatling Laser Energy Gun Gatling Laser Energy Cannon Plasma Cannon Ballistic Gun Advanced KE Penetrator Launcher Rocket Launcher Special Weapon Improved Plasma Cutter Impact Weapon Shock Maul Special Melee Weapon Improved Datajack Build | -11 -10 -10 -9 -9 -8 -7 -7 -7 -7 -5 -5 -5 -5 -5 ------- Run | Yrd Mat Min Mat Min Mat Fac Sto Rec Scr Fac Ext Cet Arc Hub Slots Evolved 10 | . . . 2 . 2 2 . . . 4 . . . . Power 1 | . . . . . . . . . . 1 . . . . Propulsion 3 | . . . 1 . . 1 . . . 1 . . . . Utility 5 | . . . 1 . 1 1 . . . 2 . . . . Weapon 1 | . . . . . 1 . . . . . . . . . Parts Attached 181 | 6 10 6 15 5 16 11 31 5 13 13 30 12 5 3 Power 12 | 1 1 . . . 1 1 4 . . 1 . 3 . . Engine 8 | 1 1 . . . . 1 3 . . 1 . 1 . . Core 2 | . . . . . 1 . 1 . . . . . . . Reactor 2 | . . . . . . . . . . . . 2 . . Propulsion 35 | 2 2 2 3 . 3 1 6 . 2 1 5 6 1 1 Treads 6 | 2 2 . . . . . . . . . 1 1 . . Leg 29 | . . 2 3 . 3 1 6 . 2 1 4 5 1 1 Wheel . | . . . . . . . . . . . . . . . Hover . | . . . . . . . . . . . . . . . Flight . | . . . . . . . . . . . . . . . Utility 52 | 1 1 4 6 . 2 4 10 2 8 4 9 1 . . Device 32 | . . 2 5 . . 2 9 . 6 2 6 . . . Storage 5 | 1 1 . 1 . . 1 . . 1 . . . . . Processor 2 | . . . . . 1 . . . 1 . . . . . Hackware . | . . . . . . . . . . . . . . . Protection 13 | . . 2 . . 1 1 1 2 . 2 3 1 . . Artifact . | . . . . . . . . . . . . . . . Weapon 82 | 2 6 . 6 5 10 5 11 3 3 7 16 2 4 2 Energy Gun 54 | 2 3 . 5 3 6 2 9 1 3 5 10 1 3 1 Energy Cannon 1 | . . . . . 1 . . . . . . . . . Ballistic Gun 1 | . . . . . . . . . . . . 1 . . Ballistic Cannon . | . . . . . . . . . . . . . . . Launcher 12 | . 3 . . 2 2 1 1 . . . 3 . . . Special Weapon 1 | . . . . . . . . . . . 1 . . . Impact Weapon 6 | . . . . . . 2 1 1 . 2 . . . . Slashing Weapon . | . . . . . . . . . . . . . . . Piercing Weapon . | . . . . . . . . . . . . . . . Special Melee Weapon 7 | . . . 1 . 1 . . 1 . . 2 . 1 1 Unidentified Prototypes 11 | . . 1 1 . . . 5 1 . 1 . 2 . . Corrupted Parts 1 | . . 1 . . . . . . . . . . . . System Corruption 5 | . . 5 . . . . . . . . . . . . Parts Lost 21 | . 1 . . . . 2 3 . . 1 2 1 . 11 Power 2 | . . . . . . 1 1 . . . . . . . Propulsion 7 | . . . . . . . . . . . 1 1 . 5 Utility 6 | . 1 . . . . . 1 . . . . . . 4 Weapon 6 | . . . . . . 1 1 . . 1 1 . . 2 Highest Loss Streak 11 | . 1 . . . . 1 1 . . 1 1 1 . 11 To Critical Strikes . | . . . . . . . . . . . . . . . Average Slot Usage (%) 96 | . 99 88 98 100 97 95 98 98 98 93 92 92 94 89 Engine 8 | . 14 14 11 11 2 1 6 7 7 11 11 7 5 4 Treads 3 | . 28 21 . . . . . . . . . . . . Leg 25 | . . 6 33 33 27 30 30 30 30 29 27 28 29 27 Device 12 | . . . 9 11 9 10 14 15 14 17 16 17 17 16 Storage 7 | . 14 14 11 11 9 7 7 7 7 5 5 5 5 4 Processor 4 | . . . . . 4 7 7 7 7 5 5 5 5 4 Protection 7 | . 13 3 11 11 13 7 6 7 6 4 5 5 5 4 Energy Gun 19 | . 27 28 21 21 24 22 21 18 14 14 16 16 16 15 Special Melee Weapon 1 | . . . . . . . . 1 7 . . . . . Naked Turns 3 | . . . . . . . . . . . . . . 3 Heaviest Build 100 | 12 29 37 30 31 44 46 53 53 71 89 93 100 100 100 Greatest Support 110 | 40 40 40 39 39 51 69 69 69 76 94 108 110 100 108 Greatest Overweight (x) 33 | . . 1 . . . . . . . . 1 1 33 1 Average Overweight (x) . | . . . . . . . . . . . . . 12 . Largest Inventory Capacity 20 | 8 15 15 15 10 10 15 15 15 20 20 20 20 20 20 Average Capacity 15 | 7 14 15 10 10 10 14 15 15 16 20 20 20 20 19 Most Carried 20 | 6 14 15 11 10 10 14 15 15 20 20 20 20 20 20 Average Carried 15 | 3 10 14 9 10 9 12 14 14 15 19 19 19 19 19 Final Capacity 20 | 8 15 15 10 10 10 15 15 15 20 20 20 20 20 5 Final Carried 20 | 6 14 12 10 10 10 14 15 15 20 18 20 20 20 5 Class Distribution -------------------- 27% | Mutant 23% | Commander-Mutant 20% | Scavenger-Gunner 14% | Commander-Gunner 11% | Gunner Dominant Class ---------------- Mutant | -10/Materials Mutant | -10/Mines Mutant | -9/Materials Mutant | -9/Mines Gunner | -8/Materials Gunner | -7/Factory Scavenger-Gunner | -7/Storage Commander-Gunner | -7/Recycling Commander-Mutant | -7/Scraptown Commander-Mutant | -5/Factory Commander-Gunner | -5/Extension Commander-Gunner | -5/Cetus Scavenger-Gunner | -5/Archives Scavenger-Gunner | -5/Hub_04(d) Resources | -11 -10 -10 -9 -9 -8 -7 -7 -7 -7 -5 -5 -5 -5 -5 ----------- Run | Yrd Mat Min Mat Min Mat Fac Sto Rec Scr Fac Ext Cet Arc Hub Matter Collected 2254 | 223 187 . 251 70 268 49 365 72 101 179 294 135 50 10 Remotely . | . . . . . . . . . . . . . . . Salvage Created 5454 | . 327 . 412 85 396 228 1158 70 . 215 1679 318 347 219 Parts 206 | . 18 . 13 8 13 5 47 5 . 8 67 10 9 3 Haulers Intercepted 11 | . 2 . 2 . 2 . 4 . . . 1 . . . Recyclers Shooed 3 | . . 1 . 1 . . . . . . 1 . . . Parts Field Recycled . | . . . . . . . . . . . . . . . Retrieved Matter . | . . . . . . . . . . . . . . . Parts Self-Destructed . | . . . . . . . . . . . . . . . Prevented . | . . . . . . . . . . . . . . . Kills | -11 -10 -10 -9 -9 -8 -7 -7 -7 -7 -5 -5 -5 -5 -5 ------- Run | Yrd Mat Min Mat Min Mat Fac Sto Rec Scr Fac Ext Cet Arc Hub Combat Hostiles Destroyed 85 | . 10 . 6 5 6 4 22 1 . 4 19 4 2 2 Guns 56 | . 2 . 5 1 2 2 16 1 . 4 16 3 2 2 AOE 18 | . 7 . . 4 4 . 3 . . . . . . . Classes Destroyed 13 | . 5 . 2 . 2 1 . . . 1 1 . 1 . Worker 7 | . 1 . . 1 . 3 2 . . . . . . . Builder 2 | . . . . . . . . . . 1 1 . . . Hauler 11 | . 2 . 2 . 2 . 4 . . . 1 . . . Recycler 3 | . . . . . 1 . . . . . 1 . . 1 Operator 1 | . 1 . . . . . . . . . . . . . Watcher 4 | . . . . . 1 1 . . . . 1 1 . . Swarmer 17 | . 3 . . 3 . . 6 . . . 4 . . 1 Grunt 32 | . 7 . 3 2 5 . 9 . . 2 4 . . . Brawler 3 | . . . 2 . 1 . . . . . . . . . Sentry 23 | . . . 1 . . 2 7 1 . . 9 . 2 1 Hunter 2 | . . . . . . . . . . . 2 . . . Programmer 4 | . . . . . . 2 . . . 2 . . . . Cetus Guard 4 | . . . . . . . . . . . . 4 . . Enhanced Grunt 1 | . . . . . . . . . . . . . 1 . Butcher 1 | . . . . . . . . . . . . . 1 . Best Kill Streak 5 | . 4 . 2 4 5 5 5 1 . 2 5 4 2 1 Combat Bots Only 5 | . 3 . 2 3 3 1 4 1 . 2 5 3 2 1 Max Kills in Single Turn 4 | . 2 . 1 3 3 4 4 1 . 2 2 1 1 1 Gunslinging 1 | . . . . . . . 1 . . 1 1 . . . Exploded 3 | . 2 . . 2 2 . 3 . . . . . . . Melee . | . . . . . . . . . . . . . . . Uniques/NPCs Destroyed 1 | . . . . . . . . 1 . . . . . . 01-MTF (-7/Recycling) Combat | -11 -10 -10 -9 -9 -8 -7 -7 -7 -7 -5 -5 -5 -5 -5 -------- Run | Yrd Mat Min Mat Min Mat Fac Sto Rec Scr Fac Ext Cet Arc Hub Hostile Shots Fired 576 | . 37 . 31 13 13 85 178 4 . 18 92 34 . 71 Missed 205 | . 10 . 10 4 6 25 86 2 . 4 26 16 . 16 Damage Taken 6698 | . 300 . 312 144 113 668 973 51 . 306 1352 364 . 2115 Core 1448 | . 75 . 51 57 51 75 110 . . . 137 27 . 865 Absorbed by Shields 301 | . . . . . . . 10 . . . 165 126 . . Regen/Repaired (Parts) 668 | . . . . . . . 383 . 68 30 128 30 25 4 Core Remaining (%) 81 | 100 . 70 . 73 90 . . . 73 . . . . . Volleys Fired 247 | . 27 1 23 7 13 18 55 4 . 7 60 16 9 7 Largest 3 | . 2 2 2 2 3 3 3 3 . 3 3 3 3 3 Hottest 237 | . 100 100 121 121 194 187 235 235 . 235 235 236 237 237 Shots Fired 629 | . 46 2 47 10 26 51 142 13 . 19 178 48 26 21 Gun 609 | . 38 2 47 6 21 50 141 13 . 19 177 48 26 21 Cannon . | . . . . . . . . . . . . . . . Launcher 20 | . 8 . . 4 5 1 1 . . . 1 . . . Special . | . . . . . . . . . . . . . . . Kinetic . | . . . . . . . . . . . . . . . Thermal 609 | . 38 2 47 6 21 50 141 13 . 19 177 48 26 21 Explosive 20 | . 8 . . 4 5 1 1 . . . 1 . . . Electromagnetic . | . . . . . . . . . . . . . . . Robot Hit Streak 21 | . 5 1 6 3 6 11 21 6 . 19 21 12 11 12 Robot Miss Streak 5 | . 3 1 4 2 2 2 3 4 . 5 3 2 2 2 Penetration Max . | . . . . . . . . . . . . . . . Secondary Targets 13 | . 1 . 1 . . . 4 . . 1 5 1 . . Max Gunslinging Chain 1 | . 1 . 1 . . . 1 . . 1 1 1 . . Shots Hit Robots 474 | . 27 1 27 5 17 34 113 11 1 14 154 35 17 18 Core Hits 228 | . 23 . 13 7 20 11 58 9 . 8 52 14 7 6 Critical Kills 1 | . . . . . . . . . . . 1 . . . Critical Parts Destroyed 5 | . . . . . . . . . . 1 4 . . . Critical Strikes 37 | . 2 . 3 . . 3 10 . . 1 14 2 1 1 Burn 30 | . 2 . 3 . . 3 10 . . . 8 2 1 1 Destroy 6 | . . . . . . . . . . . 6 . . . Smash 1 | . . . . . . . . . . 1 . . . . Melee Attacks 38 | . . . . . 1 4 . . 1 13 16 . 1 2 Impact 17 | . . . . . . 4 . . . 13 . . . . Slashing . | . . . . . . . . . . . . . . . Piercing . | . . . . . . . . . . . . . . . Sneak Attacks 22 | . . . . . 1 . . . 1 1 16 . 1 2 Combat Hostiles . | . . . . . . . . . . . . . . . Follow-up Attacks . | . . . . . . . . . . . . . . . Damage Inflicted 11961 | . 973 12 393 436 845 1213 2583 207 . 407 3237 823 367 465 Guns 9256 | . 286 12 379 67 216 627 2347 197 . 335 3228 823 367 372 Cannons . | . . . . . . . . . . . . . . . Explosions 2389 | . 650 . . 340 629 534 236 . . . . . . . Melee 72 | . . . . . . . . . . 72 . . . . Ramming 244 | . 37 . 14 29 . 52 . 10 . . 9 . . 93 Kinetic . | . . . . . . . . . . . . . . . Thermal 9707 | . 286 12 379 67 216 1078 2347 197 . 335 3228 823 367 372 Explosive 1938 | . 650 . . 340 629 83 236 . . . . . . . Electromagnetic . | . . . . . . . . . . . . . . . Impact 72 | . . . . . . . . . . 72 . . . . Slashing . | . . . . . . . . . . . . . . . Piercing . | . . . . . . . . . . . . . . . Highest Corruption 20 | . . 5 2 2 . 3 5 6 6 . . . . 20 Average Corruption 3 | . . 5 2 2 . 2 3 5 6 . . . . 12 Corruption Purged 5 | . . . . . . . 5 . . . . . . . Corruption Blocked . | . . . . . . . . . . . . . . . Effects 53 | . . 1 10 7 . 1 25 7 . . . . . 2 Message Errors 14 | . . . . 2 . 1 8 2 . . . . . 1 Matter Fused 15 | . . . 5 2 . . 7 . . . . . . 1 Heat Flow Errors 3 | . . . . . . . 3 . . . . . . . Energy Discharges 3 | . . . . 1 . . 1 1 . . . . . . Parts Rejected 1 | . . . . 1 . . . . . . . . . . Data Loss (minor) 10 | . . 1 3 1 . . 3 2 . . . . . . Data Loss (major) 2 | . . . 1 . . . . 1 . . . . . . Misfires 3 | . . . 1 . . . 1 1 . . . . . . Alerts 1 | . . . . . . . 1 . . . . . . . Weapon Failures 1 | . . . . . . . 1 . . . . . . . Overload Shots . | . . . . . . . . . . . . . . . Overflow Damage 173 | . 35 . . . . 59 5 . . 72 . . . 2 Projectiles . | . . . . . . . . . . . . . . . Explosions 98 | . 34 . . . . 59 5 . . . . . . . Melee 75 | . 1 . . . . . . . . 72 . . . 2 Knockbacks 5 | . . . 1 1 . 2 . . . . . . . 1 Impact 5 | . . . 1 1 . 2 . . . . . . . 1 Kinetic . | . . . . . . . . . . . . . . . Secondary . | . . . . . . . . . . . . . . . Self-Inflicted Damage 37 | . . . . 37 . . . . . . . . . . Shots 1 | . . . . 1 . . . . . . . . . . Rammed 7 | . 6 1 . . . . . . . . . . . . Targets Rammed 24 | . 6 1 1 2 . 5 . 2 . . 1 . . 6 Kicked 17 | . . . 1 2 . 5 . 2 . . 1 . . 6 Crushed . | . . . . . . . . . . . . . . . Highest Temperature 358 | . 316 54 271 57 201 348 358 69 . . 17 148 14 14 Average Temperature 98 | . 99 31 117 27 74 131 100 34 . . 7 63 14 14 Received Heat Transfer 1205 | . 165 . 96 51 81 141 383 . . 27 188 31 . 42 Effects 2 | . 1 . 1 . . . . . . . . . . . Interference 1 | . . . 1 . . . . . . . . . . . Damage (minor) 1 | . 1 . . . . . . . . . . . . . Siege Activations . | . . . . . . . . . . . . . . . Robots Corrupted 3 | . 1 . . . . . . . . 1 . . . 1 Combat Hostiles . | . . . . . . . . . . . . . . . Parts Fried 10 | . 3 . . . . . . . . 3 2 . . 2 Impact Corruptions 5 | . 1 . . . . . . . . 3 . . . 1 Robots Melted 12 | . 1 . 1 . . 2 4 . . . 3 1 . . Combat Hostiles 11 | . 1 . 1 . . 2 3 . . . 3 1 . . Parts Melted 62 | . 2 . 2 1 1 9 14 . . 2 23 4 2 2 Heat Transferred 20187 | . 999 37 1295 148 481 1830 5550 548 . 572 5842 1480 702 703 Parts Sabotaged 1 | . . . . . . . . . . . . . . 1 Parts Stolen . | . . . . . . . . . . . . . . . Parts Stripped . | . . . . . . . . . . . . . . . Power Chain Reactions . | . . . . . . . . . . . . . . . Alert | -11 -10 -10 -9 -9 -8 -7 -7 -7 -7 -5 -5 -5 -5 -5 ------- Run | Yrd Mat Min Mat Min Mat Fac Sto Rec Scr Fac Ext Cet Arc Hub Peak Influence 756 | . 230 27 251 197 213 160 748 330 . 170 635 551 384 756 Initial 308 | . . 27 10 23 . 11 42 218 . . 73 308 220 11 Average 212 | . 96 27 72 131 84 64 437 279 . 87 253 462 239 456 Maximum Alert Level 3 | . 1 . 1 . 1 . 3 1 . . 2 2 1 3 Low Security (%) 61 | 100 91 100 79 100 95 100 9 . . 100 55 . 57 14 Level 1 20 | . 8 . 20 . 4 . 32 100 . . 24 12 42 14 Level 2 15 | . . . . . . . 49 . . . 20 87 . 50 Level 3 2 | . . . . . . . 8 . . . . . . 20 Level 4 . | . . . . . . . . . . . . . . . Level 5 . | . . . . . . . . . . . . . . . High Security . | . . . . . . . . . . . . . . . Max Security . | . . . . . . . . . . . . . . . Squads Dispatched 23 | . 2 . 2 . 5 3 6 . . 2 1 . . 2 Investigation 6 | . 1 . 1 . 2 . 1 . . . 1 . . . Extermination 3 | . . . . . . 1 1 . . 1 . . . . Reinforcement 10 | . 1 . 1 . 1 2 3 . . 1 . . . 1 Assault 2 | . . . . . 1 . . . . . . . . 1 Garrison 2 | . . . . . 1 . 1 . . . . . . . Intercept . | . . . . . . . . . . . . . . . Searches Triggered . | . . . . . . . . . . . . . . . Construction Impeded 2 | . . . . . . 1 1 . . . . . . . Haulers Reinforced 1 | . . . . . . . 1 . . . . . . . Active Scanning Responses . | . . . . . . . . . . . . . . . Cargo Convoy Interrupts . | . . . . . . . . . . . . . . . Stealth | -11 -10 -10 -9 -9 -8 -7 -7 -7 -7 -5 -5 -5 -5 -5 --------- Run | Yrd Mat Min Mat Min Mat Fac Sto Rec Scr Fac Ext Cet Arc Hub Distress Signals 11 | . 1 . 1 . 1 1 2 . . . 1 2 . 2 Communications Jammed . | . . . . . . . . . . . . . . . Distress Signals . | . . . . . . . . . . . . . . . Times Spotted 178 | . 20 . 13 5 7 11 30 2 . 7 31 9 4 39 Peak Tracking Total 16 | . 4 . 4 3 4 3 5 1 . 4 4 5 2 16 Tactical Retreats 8 | . . . 1 . . . 2 . . . 2 . . 3 Traps | -11 -10 -10 -9 -9 -8 -7 -7 -7 -7 -5 -5 -5 -5 -5 ------- Run | Yrd Mat Min Mat Min Mat Fac Sto Rec Scr Fac Ext Cet Arc Hub Traps Triggered 5 | . 1 . . . . 1 2 . . . 1 . . . Indirectly . | . . . . . . . . . . . . . . . Trap Hack Attempts 32 | . . . 20 . . . . . . . . . . 12 Triggered . | . . . . . . . . . . . . . . . Disarmed 1 | . . . 1 . . . . . . . . . . . Reprogrammed 2 | . . . . . . . . . . . . . . 2 Reused 5 | . . . 3 . . . . . . . . . . 2 Traps Extracted . | . . . . . . . . . . . . . . . Installed 3 | . . . 3 . . . . . . . . . . . Triggered 5 | . . . 3 . . . . . . . . . . 2 Most Traps Carried 3 | . . 3 3 . . . . . 1 1 1 1 1 1 Machines | -11 -10 -10 -9 -9 -8 -7 -7 -7 -7 -5 -5 -5 -5 -5 ---------- Run | Yrd Mat Min Mat Min Mat Fac Sto Rec Scr Fac Ext Cet Arc Hub Machines Disabled 12 | . . . . 2 1 2 . 1 . . 2 . 2 2 Max in Single Turn 2 | . . . . 2 1 2 . . . . 1 . 1 . Garrison Access 2 | . . . . . 1 . 1 . . . . . . . Network Hub 2 | . . . . . . . . . . . . . . 2 Machines Repaired . | . . . . . . . . . . . . . . . Machines Dismantled 1 | . . . . . . . . . . . 1 . . . Machines Sabotaged . | . . . . . . . . . . . . . . . Overloaded Fab Kills . | . . . . . . . . . . . . . . . Hacking | -11 -10 -10 -9 -9 -8 -7 -7 -7 -7 -5 -5 -5 -5 -5 --------- Run | Yrd Mat Min Mat Min Mat Fac Sto Rec Scr Fac Ext Cet Arc Hub Machines Accessed 59 | . 9 3 7 . 3 6 11 6 3 1 4 1 . 5 Terminals 43 | . 7 1 5 . 3 4 8 5 . . 4 1 . 5 Fabricators . | . . . . . . . . . . . . . . . Repair Stations 3 | . 1 . . . . . 2 . . . . . . . Recycling Units 3 | . 1 . . . . 1 . 1 . . . . . . Scanalyzers 2 | . . . 2 . . . . . . . . . . . Garrison Access 3 | . . . . . . 1 1 . . 1 . . . . Total Hacks 161 | . 19 4 24 . 9 13 26 10 29 1 10 2 . 14 Successful 87 | . 8 2 16 . 4 3 18 3 29 . 1 1 . 2 Failed 73 | . 11 2 7 . 5 10 8 7 . 1 9 1 . 12 Catastrophic 14 | . . 1 . . 1 1 3 1 . 1 4 1 . 1 Database Lockouts 1 | . . . 1 . . . . . . . . . . . Manual 78 | . 14 2 14 . 8 10 13 8 . . . 1 . 8 Terminals 104 | . 16 2 17 . 9 10 15 9 . . 10 2 . 14 Fabricators . | . . . . . . . . . . . . . . . Repair Stations 11 | . 2 . . . . . 9 . . . . . . . Recycling Units 3 | . 1 . . . . 1 . 1 . . . . . . Scanalyzers 7 | . . . 7 . . . . . . . . . . . Garrison Access 5 | . . . . . . 2 2 . . 1 . . . . Terminal Hacks 53 | . 1 2 5 . 3 1 8 . 29 . 1 1 . 2 Record 22 | . . . . . . . . . 22 . . . . . Robot Analysis 9 | . 1 . 1 . 1 . . . 6 . . . . . Prototype ID Bank 2 | . . . 2 . . . . . . . . . . . Open Door 9 | . . 2 . . . . 5 . . . 1 1 . . Branch Access Points 3 | . . . 1 . 1 1 . . . . . . . . Unreport Threat 3 | . . . 1 . . . 2 . . . . . . . Locate Traps 2 | . . . . . 1 . . . . . . . . 1 Recall Reinforcements 1 | . . . . . . . 1 . . . . . . . Zone Layout 1 | . . . . . . . . . . . . . . 1 Derelict Proto ID Bank 1 | . . . . . . . . . 1 . . . . . Fabricator Hacks . | . . . . . . . . . . . . . . . Repair Station Hacks 9 | . 1 . . . . . 8 . . . . . . . Scan Component 4 | . . . . . . . 4 . . . . . . . Repair 4 | . . . . . . . 4 . . . . . . . Refit 1 | . 1 . . . . . . . . . . . . . Recycling Unit Hacks . | . . . . . . . . . . . . . . . Scanalyzer 4 | . . . 4 . . . . . . . . . . . Insert Component 2 | . . . 2 . . . . . . . . . . . Analyze 2 | . . . 2 . . . . . . . . . . . Garrison Access Hacks . | . . . . . . . . . . . . . . . Unauthorized Hacks 21 | . 6 . 7 . 1 2 2 3 . . . . . . Terminals 18 | . 5 . 6 . 1 2 1 3 . . . . . . Botnet 4 | . . . 1 . 1 1 1 . . . . . . . Skim 14 | . 5 . 5 . . 1 . 3 . . . . . . Fabricators . | . . . . . . . . . . . . . . . Repair Stations . | . . . . . . . . . . . . . . . Recycling Units 1 | . 1 . . . . . . . . . . . . . Tunnel 1 | . 1 . . . . . . . . . . . . . Scanalyzers 1 | . . . 1 . . . . . . . . . . . Extract 1 | . . . 1 . . . . . . . . . . . Garrison Access 1 | . . . . . . . 1 . . . . . . . Jam 1 | . . . . . . . 1 . . . . . . . Data Cores Recovered . | . . . . . . . . . . . . . . . Used . | . . . . . . . . . . . . . . . Hacking Detections 45 | . 6 1 6 . 3 6 7 6 . 1 3 1 . 5 Full Trace Events 1 | . . . . . . . . . . . 1 . . . Feedback Events . | . . . . . . . . . . . . . . . Feedback Blocked . | . . . . . . . . . . . . . . . Robot Schematics Acquired . | . . . . . . . . . . . . . . . Robots Built . | . . . . . . . . . . . . . . . Authchips . | . . . . . . . . . . . . . . . Time . | . . . . . . . . . . . . . . . Total Robot Build Rating . | . . . . . . . . . . . . . . . Part Schematics Acquired 13 | . . . 13 . . . . . . . . . . . Parts Built . | . . . . . . . . . . . . . . . Authchips . | . . . . . . . . . . . . . . . Time . | . . . . . . . . . . . . . . . Total Part Build Rating . | . . . . . . . . . . . . . . . Parts Repaired 4 | . . . . . . . 4 . . . . . . . Time 157 | . . . . . . . 157 . . . . . . . Parts Recycled . | . . . . . . . . . . . . . . . Recycled Matter . | . . . . . . . . . . . . . . . Retrieved Matter . | . . . . . . . . . . . . . . . Retrieved Components . | . . . . . . . . . . . . . . . Parts Scanalyzed 2 | . . . 2 . . . . . . . . . . . Part Schematics Acquired 2 | . . . 2 . . . . . . . . . . . Parts Damaged . | . . . . . . . . . . . . . . . Bothacking | -11 -10 -10 -9 -9 -8 -7 -7 -7 -7 -5 -5 -5 -5 -5 ------------ Run | Yrd Mat Min Mat Min Mat Fac Sto Rec Scr Fac Ext Cet Arc Hub Used RIF Installer . | . . . . . . . . . . . . . . . Robots Hacked 5 | . . . . . 1 . . . 1 . 1 . 1 1 Non-combat 1 | . . . . . . . . . . . . . . 1 Combat 4 | . . . . . 1 . . . 1 . 1 . 1 . Robot Hacks Applied 5 | . . . . . 1 . . . 1 . 1 . 1 1 parse_system 4 | . . . . . 1 . . . 1 . 1 . 1 . no_distress 1 | . . . . . . . . . . . . . . 1 Relay Couplers Released 4 | . . . . . 1 3 . . . . . . . . Machine Destruction 1 | . . . . . 1 . . . . . . . . . Programmers 3 | . . . . . . 3 . . . . . . . . Fabnet Peak Effective % . | . . . . . . . . . . . . . . . Robots Rewired 15 | . . . . . . . . . . . 15 . . . Allies Hacked 4 | . . . . . . . . . . 4 . . . . Hacks Repelled . | . . . . . . . . . . . . . . . Allies | -11 -10 -10 -9 -9 -8 -7 -7 -7 -7 -5 -5 -5 -5 -5 -------- Run | Yrd Mat Min Mat Min Mat Fac Sto Rec Scr Fac Ext Cet Arc Hub Total Allies 37 | . . . . 1 . . 13 . . . 18 5 . . Largest Group 13 | . . . . 1 1 . 12 10 8 8 13 13 10 5 Highest-Rated Group 821 | . . . . 31 31 . 250 203 171 171 523 821 747 415 Highest-Rated Ally 159 | . . . . 31 31 . 31 31 31 31 159 159 159 96 Total Orders 10 | . . . . . . . . . 2 . . 2 4 2 STAY 6 | . . . . . . . . . 1 . . 1 2 2 FOLLOW 4 | . . . . . . . . . 1 . . 1 2 . Ally Attacks 321 | . . . . . 2 . 29 20 . 39 90 52 26 63 Total Damage 7271 | . . . . . 40 . 367 180 . 595 1931 950 860 2348 Kills 52 | . . . . . . . 6 3 . 4 11 5 2 21 Allies Corrupted 6 | . . . . . . . . . . 3 . . . 3 Allies Melted . | . . . . . . . . . . . . . . . Intel | -11 -10 -10 -9 -9 -8 -7 -7 -7 -7 -5 -5 -5 -5 -5 ------- Run | Yrd Mat Min Mat Min Mat Fac Sto Rec Scr Fac Ext Cet Arc Hub Robot Analysis Total 9 | . 1 . 1 . 1 . . . 6 . . . . . Derelict Logs Recovered 5 | . . 3 . 2 . . . . . . . . . . Drone Launches . | . . . . . . . . . . . . . . . Drone Recoveries . | . . . . . . . . . . . . . . . Exploration | -11 -10 -10 -9 -9 -8 -7 -7 -7 -7 -5 -5 -5 -5 -5 ------------- Run | Yrd Mat Min Mat Min Mat Fac Sto Rec Scr Fac Ext Cet Arc Hub Turns Passed 11981 | 90 1139 376 1049 462 458 584 1129 333 2473 374 1635 303 944 632 Spaces Moved 6657 | 53 532 209 418 361 289 390 596 232 1957 175 814 176 121 334 Core 100 | 8 . . . . . . . . . . . . 44 48 Treads 749 | 45 532 172 . . . . . . . . . . . . Legs 5808 | . . 37 418 361 289 390 596 232 1957 175 814 176 77 286 Wheels . | . . . . . . . . . . . . . . . Hover . | . . . . . . . . . . . . . . . Flight . | . . . . . . . . . . . . . . . Fastest Speed 50 | 50 160 160 120 120 120 120 120 120 120 122 120 120 120 50 Average Speed 140 | 143 160 165 120 120 120 120 120 120 121 122 138 121 726 159 Slowest Speed 1700 | 160 160 190 120 120 120 120 120 120 122 122 192 190 1700 190 Overloaded Moves . | . . . . . . . . . . . . . . . Propulsion Burnouts . | . . . . . . . . . . . . . . . Robots Hopped 3 | . . . . . . . . . . . . 3 . . Cave-ins Triggered . | . . . . . . . . . . . . . . . Exploration Rate (%) 53 | 4 89 43 41 81 27 16 74 49 93 5 85 70 72 56 Regions Visited 14 Branch Regions 9 Pre-discovered Areas 9 | . 1 . 3 . . . . . 5 . . . . . Known Exits Taken 7 | . . 1 1 1 1 1 . . 1 1 . . . . Unknown Exits Taken 7 | 1 1 . . . . . 1 1 . . 1 1 1 . Scrap Searched 9 | . . . . 1 . . . . 8 . . . . . Spaces Dug 38 | . . . . 8 . 4 . . . 12 14 . . . Terrain Destroyed 174 | . 55 . . 32 30 16 13 . . 12 15 . 1 . Melee 16 | . . . . . . 4 . . . 12 . . . . Projectile 2 | . . . . . . . . . . . 1 . 1 . AOE 156 | . 55 . . 32 30 12 13 . . . 14 . . . Terrain Rammed . | . . . . . . . . . . . . . . . Walls Destroyed . | . . . . . . . . . . . . . . . Machines Disabled . | . . . . . . . . . . . . . . . Actions | -11 -10 -10 -9 -9 -8 -7 -7 -7 -7 -5 -5 -5 -5 -5 --------- Run | Yrd Mat Min Mat Min Mat Fac Sto Rec Scr Fac Ext Cet Arc Hub Total 8693 | 64 770 240 919 378 378 457 886 275 2054 292 1172 227 166 415 Wait 1179 | . 174 7 428 2 42 16 178 28 61 75 83 14 25 46 Move 6638 | 52 531 208 417 360 288 389 595 231 1956 174 813 170 120 334 Hop 2 | . . . . . . . . . . . . 2 . . Pick Up 69 | 6 14 6 3 1 5 8 5 1 8 3 5 2 2 . Fast Attach 68 | 6 1 2 4 1 7 2 13 1 6 4 11 8 1 1 Attach 26 | . 1 1 2 . 2 4 6 . 2 5 1 2 . . Detach 21 | . 1 2 . . 1 3 5 . 5 3 . 1 . . Swap 87 | . 8 3 9 4 7 5 12 4 5 4 18 2 4 2 Drop 107 | . 7 9 9 1 12 3 13 4 10 4 16 10 4 5 Fire 247 | . 27 1 23 7 13 18 55 4 . 7 60 16 9 7 Melee 38 | . . . . . 1 4 . . 1 13 16 . 1 2 Ram . | . . . . . . . . . . . . . . . Kick 17 | . . . 1 2 . 5 . 2 . . 1 . . 6 Crush 7 | . 6 1 . . . . . . . . . . . . Escape Stasis 7 | . . . . . . . 4 . . . 3 . . . Rewire 137 | . . . . . . . . . . . 137 . . . Trap 35 | . . . 23 . . . . . . . . . . 12 Miscellaneous 8 | . . . . . . . . . . . 8 . . . Route ------- -11/Scrapyard -10/Materials (discovered 5 exits: *Mat x3 / *Min / Sub) -10/Mines (discovered 4 exits: *Mat x2 / Exi / Sub) -9/Materials (discovered 4 exits: *Mat x3 / *Min) -9/Mines -8/Materials (discovered 2 exits: *Fac x2) -7/Factory (discovered 4 exits: [*Fac] / *Sto / *Low x2) -7/Storage (discovered 2 exits: [*Fac] / *Rec) -7/Recycling (discovered 2 exits: Fac / *Scr) -7/Scraptown -5/Factory (discovered 6 exits: Fac x3 / Upp x2 / *Ext) -5/Extension (discovered 2 exits: *Fac / *Cet) -5/Cetus (discovered 2 exits: *Fac / [*Arc]) -5/Archives -5/Hub_04(d) (discovered 2 exits: *Fac x2) History --------- Turn | Location | Event 2 | -11/Scrapyard | Discovered new exit (range 16) 91 | -11/Scrapyard | Entered Materials 187 | -10/Materials | Discovered new exit (range 15) 331 | -10/Materials | Build established: Mutant 347 | -10/Materials | Discovered new exit (range 16) 821 | -10/Materials | Discovered new exit (range 4) 923 | -10/Materials | Learned 4 Recycling zone layouts 972 | -10/Materials | Learned 4 Recycling zone layouts 980 | -10/Materials | Identified exit to Materials 981 | -10/Materials | Learned 2 Storage zone layouts 982 | -10/Materials | Learned location of 2 exits from Subcaves 983 | -10/Materials | Learned location of 2 exits from Mines 984 | -10/Materials | Learned 2 Mines zone layouts 985 | -10/Materials | Identified exit to Subcaves 995 | -10/Materials | Learned Storage terminal intel 1016 | -10/Materials | Learned Storage emergency access door positions 1230 | -10/Materials | Entered Mines 1232 | -10/Mines | Identified exit to Exiles 1252 | -10/Mines | Met a Derelict bent on vengeance 1333 | -10/Mines | Learned 8 Materials zone layouts 1349 | -10/Mines | Found a hidden stash of uninstalled traps 1391 | -10/Mines | A weapon hastily lodged in a ceiling crevice suddenly fell to the ground 1432 | -10/Mines | Found the Drone Emporium 1444 | -10/Mines | Found Prototype Device 1444 | -10/Mines | Identified Sensor Drone Bay 1473 | -10/Mines | Learned 2 Materials zone layouts 1506 | -10/Mines | Met a Derelict who couldn't figure out how to use a Trap Extractor 1606 | -10/Mines | Entered Materials 1606 | -9/Materials | Evolved 2 slots: Propulsion x1, Utility x1 1607 | -9/Materials | Identified exit to Mines 1608 | -9/Materials | Identified exit to Materials 2087 | -9/Materials | Discovered exit to Materials (range 14) 2102 | -9/Materials | Central database locked down 2246 | -9/Materials | Learned Storage emergency access door positions 2306 | -9/Materials | Learned location of Zion (-6) 2358 | -9/Materials | Learned Materials emergency access door positions 2401 | -9/Materials | Learned Storage stockpile data 2497 | -9/Materials | Loaded intel: 9 trap records 2593 | -9/Materials | Learned Storage machine intel 2655 | -9/Materials | Entered Mines 2689 | -9/Mines | Learned 2 Materials zone layouts 2698 | -9/Mines | Received a Rocket Launcher from a helpful Derelict 2936 | -9/Mines | Learned 4 Materials zone layouts 3001 | -9/Mines | Received a Mining Laser from a helpful Derelict 3099 | -9/Mines | Discovered exit to Materials (range 9) 3117 | -9/Mines | Entered Materials 3117 | -8/Materials | Accompanied by 1 ally 3117 | -8/Materials | Evolved 2 slots: Utility x1, Weapon x1 3118 | -8/Materials | Identified exit to Factory 3136 | -8/Materials | Garrison activated, responded to threat 3517 | -8/Materials | Met 7R-MNS 3575 | -8/Materials | Entered Factory 3575 | -7/Factory | Evolved 2 slots: Propulsion x1, Utility x1 3576 | -7/Factory | Caught up to 7R-MNS 3686 | -7/Factory | Discovered new exit (range 5) 3689 | -7/Factory | Build established: Gunner 3813 | -7/Factory | Identified exit to Storage 3813 | -7/Factory | Identified exit to Lower Caves 4061 | -7/Factory | Discovered new exit (range 12) 4159 | -7/Factory | Entered Storage 4162 | -7/Storage | Loaded intel: 44 machine locations 4163 | -7/Storage | Loaded intel: 15 terminal locations 4216 | -7/Storage | Garrison activated, responded to threat 4320 | -7/Storage | Repaired Imp. Carbon-fiber Leg 4364 | -7/Storage | Repaired Imp. Carbon-fiber Leg? 4469 | -7/Storage | Repaired Imp. Carbon-fiber Leg? 4541 | -7/Storage | Build established: Scavenger-Gunner 4902 | -7/Storage | Assisted by bots powering up and referring to "LRC-V3" 4987 | -7/Storage | Met 01-MTF 5003 | -7/Storage | Discovered new exit (range 15) 5059 | -7/Storage | Allied Derelicts emerged from ambush trap array 5159 | -7/Storage | Repaired Beamcaster 5272 | -7/Storage | Used back door to open Recycling access 5272 | -7/Storage | Discovered new exit (range 5) 5288 | -7/Storage | Entered Recycling 5288 | -7/Recycling | Accompanied by 11 allies (01-MTF) 5289 | -7/Recycling | Identified exit to Factory 5329 | -7/Recycling | Allies destroyed 01-MTF 5453 | -7/Recycling | Build established: Commander-Gunner 5562 | -7/Recycling | Scanned before Scraplab entrance 5581 | -7/Recycling | Entered Scraplab 5615 | -7/Recycling | Discovered new exit (range 3) 5621 | -7/Recycling | Entered Scraptown 5621 | -7/Scraptown | Accompanied by 8 allies 5629 | -7/Scraptown | System corruption cleaned by C-Scrubber 5845 | -7/Scraptown | Build established: Commander-Mutant 5848 | -7/Scraptown | Discovered exit to Factory (range 11) 5935 | -7/Scraptown | Visited Cave Peace 5960 | -7/Scraptown | Visited TADAMA 6009 | -7/Scraptown | Visited Spacefarers 6123 | -7/Scraptown | Visited Assassins FH 6145 | -7/Scraptown | Visited Bundlers 6406 | -7/Scraptown | Visited CPS Storage 6422 | -7/Scraptown | Visited Awakened 6460 | -7/Scraptown | Visited UFD Registry 6460 | -7/Scraptown | Registered with UFD as "Zerobucket" 6536 | -7/Scraptown | Visited Cartography Club 6563 | -7/Scraptown | Found Surveybot 17 Chip 6601 | -7/Scraptown | Learned location of Upper Caves (-4) 6601 | -7/Scraptown | Learned location of Extension (-5) 6601 | -7/Scraptown | Learned location of Hub_04(d) (-5) 6601 | -7/Scraptown | Learned location of Quarantine (-3) 6601 | -7/Scraptown | Learned 8 Materials zone layouts 6601 | -7/Scraptown | Learned 16 Materials zone layouts 6601 | -7/Scraptown | Learned 16 Factory zone layouts 6601 | -7/Scraptown | Learned 20 Factory zone layouts 6601 | -7/Scraptown | Learned 4 Mines zone layouts 6601 | -7/Scraptown | Learned 16 Upper Caves zone layouts 6601 | -7/Scraptown | Learned 8 Proximity Caves zone layouts 6601 | -7/Scraptown | Learned 12 Proximity Caves zone layouts 6601 | -7/Scraptown | Learned 24 Proximity Caves zone layouts 6601 | -7/Scraptown | Learned 4 Armory zone layouts 6601 | -7/Scraptown | Learned location of 3 exits from Lower Caves 6601 | -7/Scraptown | Learned location of 3 exits from Upper Caves 6601 | -7/Scraptown | Learned location of 2 exits from Proximity Caves 6629 | -7/Scraptown | Found Deep Structural Scanner 6685 | -7/Scraptown | Visited Science Testing Area 6709 | -7/Scraptown | Visited Supply Room 6737 | -7/Scraptown | Visited A0-MCA Data Center 6746 | -7/Scraptown | Given an A rating by A0-MCA 6761 | -7/Scraptown | Found A0-MCA's Component Scanner 6822 | -7/Scraptown | Visited Research Penetration Think Tank 6851 | -7/Scraptown | Visited Analyses Database 6963 | -7/Scraptown | Visited Science Guys 7004 | -7/Scraptown | Visited Chapter 10 7750 | -7/Scraptown | Found Scrap Suit 7805 | -7/Scraptown | Found Scrap Suit 8094 | -7/Scraptown | Entered Factory 8094 | -5/Factory | Accompanied by 8 allies 8094 | -5/Factory | Evolved 4 slots: Power x1, Propulsion x1, Utility x2 8095 | -5/Factory | Identified exit to Upper Caves 8096 | -5/Factory | Identified exit to Factory 8096 | -5/Factory | Identified exit to Extension 8367 | -5/Factory | P-70 Sage assimilated allied Trooper 4f 8420 | -5/Factory | Lost 7 allies 8468 | -5/Factory | Entered Extension 8662 | -5/Extension | Build established: Gunner 9158 | -5/Extension | Rescued A7 9411 | -5/Extension | Spotted B-75 Beast 9428 | -5/Extension | Spotted B-75 Beast 9431 | -5/Extension | Allies destroyed B-75 Beast 9445 | -5/Extension | Allies destroyed B-75 Beast 9795 | -5/Extension | Rescued a captive Derelict 9796 | -5/Extension | Rescued a captive Derelict 9836 | -5/Extension | Build established: Commander-Gunner 10071 | -5/Extension | Discovered exit to Factory (range 10) 10072 | -5/Extension | Discovered new exit (range 6) 10103 | -5/Extension | Entered Cetus 10103 | -5/Cetus | Accompanied by 13 allies (A7) 10108 | -5/Cetus | Acquired a Cetus Manufacturing Module code from A7 10120 | -5/Cetus | Spotted Cetus Guard 10120 | -5/Cetus | Spotted Cetus Guard 10122 | -5/Cetus | Allies destroyed Cetus Guard 10122 | -5/Cetus | Spotted Cetus Guard 10122 | -5/Cetus | Spotted Cetus Guard 10126 | -5/Cetus | Allies destroyed Cetus Guard 10144 | -5/Cetus | Destroyed Cetus Guard 10235 | -5/Cetus | Started Cetus Manufacturing Module 10244 | -5/Cetus | Escorted A7 to Cetus Mainframe 10260 | -5/Cetus | Manufactured an Enhanced Grunt 10263 | -5/Cetus | Discovered new exit (range 15) 10285 | -5/Cetus | Manufactured an Enhanced Grunt 10292 | -5/Cetus | Spotted Cetus Guard 10292 | -5/Cetus | Spotted Cetus Guard 10297 | -5/Cetus | Spotted Cetus Guard 10298 | -5/Cetus | Spotted Cetus Guard 10299 | -5/Cetus | Destroyed Cetus Guard 10310 | -5/Cetus | Manufactured an Enhanced Grunt 10315 | -5/Cetus | Destroyed Cetus Guard 10319 | -5/Cetus | Allies destroyed Cetus Guard 10319 | -5/Cetus | Destroyed Cetus Guard 10334 | -5/Cetus | Discovered exit to Factory (range 15) 10335 | -5/Cetus | Manufactured an Enhanced Grunt 10340 | -5/Cetus | Met Revision 17 10346 | -5/Cetus | Lost 3 allies 10360 | -5/Cetus | Manufactured an Enhanced Grunt 10406 | -5/Cetus | Entered Archives 10406 | -5/Archives | Accompanied by 10 allies (A7) 10411 | -5/Archives | Received a hacking code to weaken MAIN.C 10534 | -5/Archives | Discovered new exit (range 15) 10741 | -5/Archives | Build established: Scavenger-Gunner 11350 | -5/Archives | Entered Hub_04(d) 11350 | -5/Hub_04(d) | Accompanied by 5 allies 11658 | -5/Hub_04(d) | Discovered exit to Factory (range 5) 11750 | -5/Hub_04(d) | Discovered exit to Factory (range 10) 11919 | -5/Hub_04(d) | Network Hub disabled 11919 | -5/Hub_04(d) | Spotted Lightning 11920 | -5/Hub_04(d) | Spotted Lightning 11946 | -5/Hub_04(d) | Spotted Lightning 11949 | -5/Hub_04(d) | Spotted Lightning 11950 | -5/Hub_04(d) | First assault squad dispatched 11950 | -5/Hub_04(d) | Spotted Lightning 11953 | -5/Hub_04(d) | Spotted Lightning 11954 | -5/Hub_04(d) | System corruption reached 10% 11954 | -5/Hub_04(d) | Spotted Lightning 11955 | -5/Hub_04(d) | Spotted Lightning 11955 | -5/Hub_04(d) | Spotted Lightning 11960 | -5/Hub_04(d) | Lost 3 allies 11964 | -5/Hub_04(d) | Core integrity fell below 50% 11982 | -5/Hub_04(d) | Network Hub disabled 11982 | -5/Hub_04(d) | Destroyed by Lightning with EMDS Last Messages --------------- 11963_ Penetrated by EMDS Slug. 11963_ EMDS Slug penetrates Wall. 11963_ Cryofiber Web destroyed. 11967_ Penetrated by EMDS Slug. 11968_ C-30 ARC bursts open, deploying its payload. 11968_ G-67 Veteran unfolds itself. 11968_ G-50 Soldier unfolds itself. 11968_ E-15 Imp unfolds itself. 11969_ EMDS Slug penetrates Wall. 11973_ System corrupted: Matter fused (-5). 11979_ Imp. Targeting Computer blown off. 11979_ E-15 Imp destroyed. 11982_ EMDS Slug penetrates Network Hub. 11982_ ALERT: Network intrusion management efficiency at 70%. 11982_ Network Hub explodes. 11982_ Chain reaction triggered in Corrupted Lgt. Angular Momentum Engine. 11982_ Door malfunctions. 11982_ Penetrated by EMDS Slug. Map ----- +----------------------------------------------------+ | """" #??### # #"????????????# [# | | #??#"" + #"????????????# !/ | | #??#T # """" #"????????????# ! | | #??### # """" # ????????????# !! | | | #??### # """" # ????????????# !! | | #??#"" # """" # ????????????# # | | ########??#T %###########??????????? + # | | ??????????### ###########??????????? # # | | ????????????#% # = ?????H??????# ## | | ????????????# # [%!! """ ???????????# ## | | ??########### %# =!! #??????????# =#####""# | | ### # + ! "" !#??????????# %#!!! # | | / # # #?; ??????# #!! # | | ### # # """ "" ##; ;#????# #!! + | | ??# [%/ + # ; ; ??# # # | | ### =#%! ###### ##;;;; ; ; ??# # # | | ## # ######## ;;;;;;;;;;;;## # # | | ## # # # ; ##=!/ """" # | | ## # #??????# ; ;# *# """" # | | ############ #%?????# ; #]!# """" # | | #??????????# # ????# ; #%%# """" # | | #??????????# #? ??# ; [%# # | | ######????### #??? ?# ; h!h%%=# # | | ##/###/# ; h h g%# # | | ########## ;;;;= hx =;;g%### #### | | * # @; h ;;b%#??#???? | | !!! ## ;;;;;;;! h ;;g!#??????? | | !!! "" #? # ## ;;;;;;;;;;;;;;*=#?????## | | !! "" ## """" #?####;;;;;;;;;;;;;#*!#?????# | | T" ## """" ### ##%=#?????# | | "" ## """" % + ##%!#?????# | | """ "" ## " "" # ## ##????# | | ##= % # ###### | | ####+##/#!% /% # ! / | | ???# * ##### # ! #%%< / | | ???# #???# # !! # % ###### | | ???# #####+###+###### ########;; # ##""#####??# | | ???# #???# # #########;;## ! % #??# | | ???# #???# # <] + ] ! "#??# | | ???# #???# # ##### # T#??## | | ???# #???# ##+###### # " " " "#???? | | ???# #???# # ## + " " " #???? | | ???# #???# + ##### #### " " " #???? | | ???# #???# # #???# #??# ]#???? | | ???# #???#% [ # #???# #??# [ ! #???? | | ???? ????#+######### #???# #??###########???? | | ???# ##### #### # #???# #????????????????? | | ???# + ########???# +????????????????? | | ???############ #???????????#?????????????????? | | ??????????????# #?????????????????????????????? | +----------------------------------------------------+ Best States ------------- Heat Dissipation 78 Coolant Potential 80 Energy Generation 38 Energy Capacity 560 Matter Stores 300 Matter Capacity 300 Sight Range 16 Terrain Scan Density 10 Base Temperature (-) 100 Armor Coverage 450 Evasion (%) 55 Targeting Accuracy 6 Recoil Reduction 2 Trap Extractor Capacity 6 Item Schematics ----------------- Hrd. Medium Armor Plating | -9/Materials | Scanalyzed Carbon-fiber Leg | -9/Materials | Scanalyzed Autogun | -9/Materials | Extracted Mining Claw | -9/Materials | Extracted Imp. Aluminum Leg | -9/Materials | Extracted EM Pulse Gun | -9/Materials | Extracted Flight Unit | -9/Materials | Extracted ECM Suite | -9/Materials | Extracted Imp. Light Cannon | -9/Materials | Extracted Lgt. Ion Engine | -9/Materials | Extracted Hcp. Storage Unit | -9/Materials | Extracted Lrg. Matter Pod | -9/Materials | Extracted Med. Laser | -9/Materials | Extracted Robot Schematics ------------------ None Fabricated ------------ Nothing Alien Tech Used ----------------- None Achievements -------------- None Challenges ------------ None Game ------ Seed SeismicSurgeSpoofer Manual? 0 Play Time 01:22:01 Cumulative 1610.9 hours Start 2024.07.31 @ 13:42:02 End 2024.08.01 @ 01:13:26 Sessions 3 Manual Loads 0 Difficulty Rogue Special Mode None Game No. 1109 Rogue 1105 Adventurer 4 Explorer 0 Win Type - Total 205 Types 153/11/14/9/2/1/3/8/4 Lore% 96 Gallery% 96 Achievement% 98 Wizard Run 0 Options --------- Layout 2 ASCII 0 Keyboard 1 Movement Vi Keybinds 0 Fullscreen 0 Font 24/Terminus Map View 59x48 Zoom Use 0% Tactical HUD 1 Map Filters NONE Filters NONE Steam 1 RUN: 2498db54-87e1-4a99-8744-810196f6627b